[Event "Czech Open-Rapid 2022"]
[Site "Pardubice"]
[Date "2022.07.21"]
[Round "6.23"]
[White "Krak, Tomas"]
[Black "Svoboda, Petr"]
[Result "1-0"]
[ECO "E97"]
[WhiteElo "2312"]
[BlackElo "2088"]
[Annotator "TA"]
[PlyCount "199"]
[EventDate "2022.07.20"]
[EventType "swiss"]
[EventCountry "CZE"]
[SourceTitle "playchess.com"]
[Source "ChessBase"]
[SourceQuality "1"]
[TimeControl "1200+10"]

{[%evp 23,199,41,90,63,96,88,91,68,64,57,158,63,187,115,110,110,116,127,209,172,186,133,120,124,114,120,144,63,50,52,165,111,116,121,102,80,140,140,140,140,140,140,319,140,140,87,87,87,87,87,94,0,0,0,65,0,0,-799,-663,-553,0,0,0,0,0,0,0,0,0,0,0,0,0,0,0,0,12833,0,0,0,0,0,0,0,12835,0,0,0,0,0,0,0,0,0,0,0,0,0,0,0,0,0,0,0,0,0,0,0,0,0,0,0,0,0,0,0,0,0,0,0,0,0,0,0,0,0,0,0,0,0,0,0,0,0,0,0,0,0,0,0,0,0,0,0,0,0,0,0,0,0,0,0,0,0,0,0,0,0,0,0,0,0,0,0,0,0,27996,0,27998,27998,27999,27999,27997,27998,27998,27998,27999,27999]} 1. Nf3 Nf6 {[%emt 0:00:06]} 2. c4 {[%emt 0:00:04]} g6 {[%emt 0:00:06]} 3. Nc3 {[%emt 0:00:01]} Bg7 {[%emt 0:00:02]} 4. e4 {[%emt 0:00:01]} d6 {[%emt 0:00:18]} 5. d4 {[%emt 0:00:02]} O-O {[%emt 0:00:11]} 6. Be2 {[%emt 0:00:01]} e5 {[%emt 0:00:52]} 7. O-O {[%emt 0:00:12]} Nc6 {[%emt 0:00:47]} 8. d5 {[%emt 0:00:02]} Ne7 {[%emt 0:00:02]} 9. b4 {[%emt 0:00:01]} Ne8 {[%emt 0:00:14]} 10. c5 {[%emt 0:00:08]} f5 {[%emt 0:00:02]} 11. Nd2 {[%emt 0:00:30]} f4 {[%emt 0:00:07]} 12. Bg4 {[%emt 0:00:04]} h5 {[%emt 0:02:36]} (12... Bxg4 $14 13. Qxg4 c6) 13. Bxc8 {E97: King's Indian: Classical Main Line (6...e5 7 0-0 Nc6): 8 Be3 and 8 d5 Ne7, not 9 Ne1.} Qxc8 {[%emt 0:01:21]} 14. a4 {[%emt 0:00:37] [#]} Qg4 $146 {[%emt 0:01:39]} ({Predecessor:} 14... Rf7 15. Ba3 Bf8 16. Nc4 Kh7 17. Qf3 Ng8 18. Rfc1 Ngf6 19. b5 g5 20. b6 g4 {1-0 (46) Yuferev,O (2243)-Filippov,V (2001) Voronezh 2014}) 15. Qxg4 {[%emt 0:02:22] White is better.} hxg4 {[%emt 0:00:02]} 16. f3 {[%emt 0:00:01]} g3 {[%emt 0:02:01]} (16... gxf3 $14 17. gxf3 c6) 17. h3 {[%emt 0:03:07]} (17. hxg3 $16 {Threatens to win with Nc4.} c6 18. Rd1) 17... a5 {[%emt 0:02:10]} (17... c6 $14) 18. Ba3 {[%emt 0:00:32]} (18. bxa5 $1 $18 dxc5 19. Ba3) 18... axb4 $16 {[%emt 0:03:47]} 19. Bxb4 {[%emt 0:00:01]} dxc5 {[%emt 0:00:58]} 20. Bxc5 {[%emt 0:00:03]} Nd6 {[%emt 0:00:02]} (20... Rf7 $16 {was worth a try.}) 21. Nb5 {[%emt 0:00:28]} Nxb5 {[%emt 0:00:38]} 22. axb5 {[%emt 0:00:34]} (22. Bxe7 $18 Nc3 23. Bxf8 Bxf8 24. Rfe1) 22... Bf6 {[%emt 0:00:28]} 23. Nb3 {[%emt 0:01:44]} b6 {[%emt 0:00:09]} 24. Bb4 {[%emt 0:00:10]} Rfd8 {[%emt 0:01:04]} 25. Rfc1 {[%emt 0:00:20]} (25. Nd2 $1 $16) 25... Rxa1 $14 {[%emt 0:01:05]} 26. Rxa1 {[%emt 0:00:04]} Kf7 {[%emt 0:00:24]} (26... Nf5 $14) 27. Ra7 {[%emt 0:00:29]} ({Better is} 27. Nd2 $1 $18) 27... Rd7 $16 {[%emt 0:00:08]} 28. Kf1 {[%emt 0:00:53]} Nc8 {[%emt 0:00:18]} 29. Ra8 {[%emt 0:00:59]} Nd6 {[%emt 0:00:39]} (29... Rd8 $142) 30. Bxd6 {[%emt 0:00:03]} cxd6 {[%emt 0:00:10][%mdl 4096] Endgame KRB-KRN} 31. Ke2 $1 {[%emt 0:01:05]} Rc7 {[%emt 0:00:23]} 32. Kd3 {[%emt 0:00:08] Prevents Rc2.} g5 $2 {[%emt 0:00:16]} (32... Rd7 $16 33. Nd2 Bd8) 33. Ra6 {[%emt 0:00:34]} (33. Rb8 $18 {is the precise move to win.}) 33... Rb7 {[%emt 0:00:14]} 34. Nd2 {[%emt 0:00:32]} ({White should play} 34. Nc1 $1) 34... Bd8 {[%emt 0:00:08]} 35. Nc4 {[%emt 0:00:11]} Ke7 {[%emt 0:00:06]} 36. Ra8 {[%emt 0:00:27]} Kd7 {[%emt 0:00:13]} 37. Nxd6 {[%emt 0:01:58] White is more active.} Kxd6 {[%emt 0:00:12]} 38. Rxd8+ {[%emt 0:00:02] KR-KR} Kc5 {[%emt 0:00:01]} 39. Rg8 {[%emt 0:00:08]} (39. Ra8 $1 $14) 39... Ra7 $11 {[%emt 0:00:04] ...Ra3+ is the strong threat.} 40. Rxg5 $2 {[%emt 0:00:40][%mdl 8192]} (40. Rc8+ $11 Kxb5 41. Rc2) 40... Ra3+ $19 {[%emt 0:00:05]} 41. Kc2 {[%emt 0:00:19]} Re3 $2 {[%emt 0:00:07]} ({Black should try} 41... Ra2+ $19 42. Kd3 Rxg2) 42. Rxe5 {[%emt 0:01:51]} Re2+ {[%emt 0:00:01]} 43. Kd3 {[%emt 0:00:04]} Rxg2 {[%emt 0:00:01] And now ...Rf2 would win.} 44. Rf5 {[%emt 0:00:20]} Rf2 {[%emt 0:00:19] Hoping for ...g2.} 45. Rxf4 {[%emt 0:00:02]} g2 {[%emt 0:00:04]} 46. Rg4 Rxf3+ {[%emt 0:00:01]} 47. Ke2 {[%emt 0:01:08]} Rf4 {[%emt 0:00:48] ( -> ...Rxg4)} 48. Rxg2 {[%emt 0:00:01]} Rxe4+ {[%emt 0:00:00]} 49. Kf3 {[%emt 0:00:12]} Ra4 {[%emt 0:00:48][%mdl 8192] [#]} (49... Rd4 $11) 50. Rd2 $2 {[%emt 0:00:19]} ({Only move:} 50. Rc2+ $1 $18 Kxb5 51. Rd2) 50... Kd6 $11 {[%emt 0:00:05]} 51. Kg3 {[%emt 0:00:04]} Rb4 {[%emt 0:00:04]} 52. h4 {[%emt 0:00:06] Black must now prevent h5.} Rxb5 {[%emt 0:00:01]} 53. h5 {[%emt 0:00:09] aiming for h6.} Rb1 $2 {[%emt 0:00:28][%mdl 8192] [#]} (53... Rb3+ $11 54. Kg4 Rb1) 54. Kf4 $2 {[%emt 0:00:56]} ({White must play} 54. h6 $1 $18 Rg1+ 55. Rg2) 54... Rh1 {[%emt 0:00:13]} 55. Kg5 {[%emt 0:00:05]} Rg1+ {[%emt 0:00:04]} 56. Kf6 {[%emt 0:00:05]} Rf1+ {[%emt 0:00:04]} 57. Kg6 {[%emt 0:00:01]} Rg1+ {[%emt 0:00:01]} 58. Kf6 {[%emt 0:00:39]} Rf1+ {[%emt 0:00:02]} 59. Kg7 {[%emt 0:00:14]} Rg1+ {[%emt 0:00:06]} 60. Kh7 {[%emt 0:00:08]} b5 {[%emt 0:00:01][%cal Bb6b5,Bb5b4,Bb4b3,Bb3b2][%mdl 32]} 61. h6 {[%emt 0:00:01]} b4 {[%emt 0:00:02]} 62. Kh8 {[%emt 0:00:24]} b3 {[%emt 0:00:27]} 63. h7 {[%emt 0:00:43]} Rg3 {[%emt 0:00:47]} 64. Rd4 {[%emt 0:00:02]} Rg5 {[%emt 0:00:10]} 65. Rd3 {[%emt 0:00:10]} b2 {[%emt 0:00:17]} 66. Rb3 {[%emt 0:00:02]} Rg2 {[%emt 0:00:01]} 67. Rb5 {[%emt 0:00:19]} Rf2 {[%emt 0:00:34]} 68. Kg7 {[%emt 0:00:14]} Rg2+ {[%emt 0:00:01]} 69. Kf6 {[%emt 0:00:21]} Rf2+ {[%emt 0:00:01]} 70. Kg5 {[%emt 0:00:51]} Rg2+ {[%emt 0:00:01]} 71. Kf5 {[%emt 0:00:19]} Rf2+ {[%emt 0:00:04]} 72. Ke4 {[%emt 0:00:14]} Rh2 {[%emt 0:00:12]} 73. Rb6+ {[%emt 0:00:28]} Kc7 74. Rxb2 $2 {[%emt 0:00:29][%mdl 8192]} Rxh7 {[%emt 0:00:18]} 75. Ra2 $2 {[%emt 0:00:08][%mdl 8192]} (75. Rc2+ $11 Kd7 76. Ke5) 75... Rh1 $2 {[%emt 0:00:20][%mdl 8192]} (75... Rh6 $11) 76. Ra7+ {[%emt 0:00:09]} Kd6 {[%emt 0:00:04]} 77. Ra6+ {[%emt 0:00:05]} Ke7 $2 {[%emt 0:00:03][%mdl 8192]} (77... Kd7 $11) 78. Ra3 $2 {[%emt 0:00:45][%mdl 8192]} (78. Re6+ $11 Kd7 79. Rg6) 78... Rh4+ $2 {[%emt 0:00:20][%mdl 8192]} (78... Rh6 $11) 79. Ke5 {[%emt 0:00:02]} Rh5+ $2 {[%emt 0:00:02][%mdl 8192]} (79... Rh6 $11) 80. Kd4 {[%emt 0:00:01]} Rh1 $2 {[%emt 0:00:36][%mdl 8192]} (80... Rh6 $11) 81. Rc3 $2 {[%emt 0:00:11][%mdl 8192]} (81. Ra7+ $11 Kd6 82. Rg7 (82. Ra6+ Kd7 $11)) 81... Rh4+ $2 {[%emt 0:00:03][%mdl 8192]} (81... Rh6 $11) 82. Kc5 {[%emt 0:00:03]} Kd7 $2 {[%emt 0:00:03][%mdl 8192]} (82... Rh6 $11) 83. Rg3 $2 {[%emt 0:00:09][%mdl 8192]} (83. Kb6 $11) 83... Rh7 $2 {[%emt 0:00:11][%mdl 8192]} (83... Rh6 $11) 84. Rg6 {[%emt 0:00:06]} Rf7 $2 {[%emt 0:00:27][%mdl 8192]} (84... Kc7 $11) 85. Ra6 {[%emt 0:00:02]} Rf1 $2 {[%emt 0:00:06][%mdl 8192]} (85... Rf4 $11) 86. Ra7+ {[%emt 0:00:02]} Kc8 $2 {[%emt 0:00:21][%mdl 8192]} (86... Kd8 $11) 87. Kc6 $2 {[%emt 0:00:06][%mdl 8192]} (87. Ra8+ $11 Kb7 88. Rh8) 87... Rc1+ {[%emt 0:00:03]} 88. Kd6 $2 {[%emt 0:00:02][%mdl 8192]} (88. Kb5 $11) 88... Rd1 {[%emt 0:00:12]} 89. Ra8+ $2 {[%emt 0:00:16][%mdl 8192]} (89. Ke5 $11) 89... Kb7 {[%emt 0:00:01]} 90. Rh8 $2 {[%emt 0:00:04][%mdl 8192]} (90. Ra3 $11) 90... Rg1 $2 {[%emt 0:00:07][%mdl 8192]} (90... Rd3 $11) 91. Rh2 $2 {[%emt 0:00:44][%mdl 8192]} (91. Ke6 $11 Rg6+ 92. Kf5) 91... Rg6+ $2 {[%emt 0:00:01][%mdl 8192]} (91... Rd1 $11) 92. Ke7 $2 {[%emt 0:00:12][%mdl 8192]} (92. Kd7 $11 Rg7+ 93. Ke6) 92... Rg7+ $2 {[%emt 0:00:04][%mdl 8192]} (92... Kc7 $11) 93. Kf6 $2 {[%emt 0:00:08][%mdl 8192]} (93. Ke6 $11) 93... Rd7 {[%emt 0:00:14]} 94. Ke6 {[%emt 0:00:05]} Rd8 $2 {[%emt 0:00:02][%mdl 8192]} (94... Kc7 $11) 95. Rc2 {[%emt 0:00:15]} Re8+ $2 {[%emt 0:00:06][%mdl 8192]} (95... Kb6 $11) 96. Kd7 {[%emt 0:00:02] White mates.} Rh8 {[%emt 0:00:06]} 97. Rb2+ {[%emt 0:00:03]} Ka6 {[%emt 0:00:03]} 98. Kc6 {[%emt 0:00:02]} Rh6+ {[%emt 0:00:02]} 99. d6 {[%emt 0:00:01][%cal Rb2a2]} Ka7 {[%emt 0:00:16]} 100. Kc7 {Weighted Error Value: White=0.64/Black=0.31} 1-0

[Event "Czech Open-Rapid 2022"]
[Site "Pardubice"]
[Date "2022.07.21"]
[Round "6.24"]
[White "Brozka, Karel"]
[Black "Sir, Zbynek"]
[Result "0-1"]
[ECO "A43"]
[WhiteElo "2188"]
[BlackElo "2199"]
[Annotator "TA"]
[PlyCount "80"]
[EventDate "2022.07.20"]
[EventType "swiss"]
[EventCountry "CZE"]
[SourceTitle "playchess.com"]
[Source "ChessBase"]
[SourceQuality "1"]
[TimeControl "1200+10"]

{[%evp 9,80,84,95,87,87,73,81,93,94,51,75,62,73,0,75,-30,0,3,10,10,37,-22,-24,-18,22,0,115,28,129,0,-7,-375,-376,-370,-380,-345,-369,-471,-465,-454,-440,-500,-494,-546,-498,-503,-481,-607,-527,-518,-464,-470,-458,-449,-433,-423,-410,-399,-327,-523,-513,-483,-438,-438,-413,-668,-234,-1671,-1884,-29985,-29986,-5406,-677]} 1. d4 {[%emt 0:00:01]} c5 {[%emt 0:00:50]} 2. d5 {[%emt 0:00:03]} b5 {[%emt 0:00:01]} 3. e4 {[%emt 0:00:02]} a6 {[%emt 0:00:01]} 4. c4 {[%emt 0:00:08]} bxc4 {[%emt 0:00:01]} 5. Bxc4 {[%emt 0:00:01]} d6 {[%emt 0:00:02]} 6. Nc3 {[%emt 0:00:10] A43: Schmid Benoni.} g6 {[%emt 0:00:05]} 7. f4 {[%emt 0:00:16]} Bg7 {[%emt 0:00:05]} 8. Nf3 {[%emt 0:00:05] [#] White is better.} Nf6 $146 {[%emt 0:01:19][%cal Bg8f6,Bf6d7,Bd7b6][%mdl 32]} ({Predecessor:} 8... Nd7 9. Qa4 Nh6 10. h3 O-O 11. g4 Nb6 12. Qb3 Nxc4 13. Qxc4 Kh8 14. Be3 a5 {1-0 (41) Obando,R (2110)-Sierra,M (2300) Lima 2004}) 9. O-O {[%emt 0:00:04]} Nfd7 {[%emt 0:00:03] Inhibits e5.} 10. Qe2 {[%emt 0:00:50]} Nb6 {[%emt 0:00:09] [#]} 11. Be3 {[%emt 0:00:55]} (11. Bd3 $1 $16) 11... O-O {[%emt 0:00:04]} (11... Nxc4 $11 12. Qxc4 a5) 12. e5 {[%emt 0:00:33]} (12. Bd3 $16) 12... Bg4 {[%emt 0:00:29]} 13. h3 {[%emt 0:00:41]} Bxf3 {[%emt 0:00:21]} 14. Rxf3 {[%emt 0:00:02]} N8d7 {[%emt 0:00:36]} 15. e6 {[%emt 0:00:36]} (15. Bxa6 $14 dxe5 16. Bb5) 15... fxe6 $11 {[%emt 0:00:04]} 16. dxe6 {[%emt 0:00:02]} Nf6 {[%emt 0:00:14]} 17. Bxa6 {[%emt 0:00:17]} Qb8 {[%emt 0:01:19]} (17... Nfd5 $11 {keeps the balance.} 18. Nxd5 Nxd5) 18. f5 {[%emt 0:01:16]} ({White has to play} 18. Rd1 $16) 18... Nfd5 {[%emt 0:00:47]} (18... Nbd5 $1 $11 {remains equal.}) 19. Nxd5 {[%emt 0:01:33]} ({White should play} 19. Bg5 $16) 19... Nxd5 {[%emt 0:00:03]} 20. Bc4 $2 {[%emt 0:00:07][%mdl 8192] This move loses the game for White.} (20. Bc1 $11 {and White stays safe.}) 20... Nxe3 $19 {[%emt 0:00:12]} 21. Rxe3 {[%emt 0:00:24]} Bd4 {[%emt 0:03:13]} 22. fxg6 {[%emt 0:00:06]} hxg6 {[%emt 0:00:03]} ({Inferior is} 22... Bxe3+ 23. Qxe3 Qxb2 24. gxh7+ Kh8 25. Rd1 $19) 23. Kh1 {[%emt 0:00:06] Strongly threatening Rg3.} Bxe3 {[%emt 0:00:15]} 24. Qxe3 {[%emt 0:00:01]} Qxb2 {[%emt 0:00:02]} 25. Rd1 {[%emt 0:00:21]} Kg7 {[%emt 0:00:37]} 26. Bd5 {[%emt 0:00:59]} Ra3 {[%emt 0:00:58]} 27. Qg5 {[%emt 0:00:06]} Qf6 {[%emt 0:00:13]} 28. Qg4 {[%emt 0:00:26]} Qf5 {[%emt 0:00:17]} 29. Qh4 {[%emt 0:00:14]} Rf6 {[%emt 0:00:24] And now ...Rd3 would win.} 30. Bb3 {[%emt 0:00:16]} Qf4 {[%emt 0:00:34]} 31. Qe1 {[%emt 0:00:51]} Ra8 {[%emt 0:01:03]} 32. Qc3 {[%emt 0:00:32] Against c4} Rc8 {[%emt 0:01:39] Hoping for ...c4.} 33. Bd5 {[%emt 0:01:06]} Qb4 {[%emt 0:00:19]} 34. Qd3 {[%emt 0:00:35]} (34. Qxb4 {was worth a try.} cxb4 35. Rd4) 34... c4 {[%emt 0:00:24]} 35. Qd4 {[%emt 0:00:01]} Qc5 {[%emt 0:00:02]} 36. Qc3 {[%emt 0:00:08]} Kg8 {[%emt 0:02:22]} 37. Rd4 {[%emt 0:02:10]} (37. a4 $142) 37... Rf5 $2 {[%emt 0:03:07]} (37... Rf1+ 38. Kh2 {[#]} Rc1 $3 {[%mdl 512]}) 38. Bxc4 $2 {[%emt 0:01:54]} (38. Qxc4 Kg7 39. Kh2) 38... Rf1+ {[%emt 0:00:59]} 39. Kh2 {[%emt 0:00:01]} Qe5+ {[%emt 0:00:01]} 40. Qg3 {[%emt 0:00:16]} Rh1+ {Weighted Error Value: White=0.94/Black=0.41} 0-1

[Event "Czech Open-Rapid 2022"]
[Site "Pardubice"]
[Date "2022.07.21"]
[Round "6.25"]
[White "Brozka, Karel"]
[Black "Contos, Vaclav sr"]
[Result "1-0"]
[ECO "D52"]
[WhiteElo "2188"]
[BlackElo "2074"]
[Annotator "TA"]
[PlyCount "69"]
[EventDate "2022.07.20"]
[EventType "swiss"]
[EventCountry "CZE"]
[SourceTitle "playchess.com"]
[Source "ChessBase"]
[SourceQuality "1"]
[TimeControl "1200+10"]

{[%evp 14,68,12,4,20,17,19,0,43,50,46,22,18,18,61,0,8,8,36,42,39,-33,-33,-33,-39,-36,-16,-40,-49,-54,239,235,221,0,0,-4,0,0,9,-25,-25,-35,0,-127,-127,-127,-127,-127,-127,-127,-127,-127,-127,-127,-133,-248,29999]} 1. d4 {[%emt 0:00:01]} d5 {[%emt 0:00:03]} 2. c4 {[%emt 0:00:02]} e6 {[%emt 0:00:02]} 3. Nc3 {[%emt 0:00:01]} Nf6 {[%emt 0:00:01]} 4. Nf3 {[%emt 0:00:01]} c6 {[%emt 0:00:03]} 5. Bg5 {[%emt 0:00:02]} Nbd7 {[%emt 0:00:01]} 6. e3 {[%emt 0:00:03]} Qa5 {[%emt 0:00:01]} 7. Bxf6 {[%emt 0:00:20]} Nxf6 {[%emt 0:00:04]} 8. Bd3 {[%emt 0:00:04]} Be7 {[%emt 0:00:13] D52: Queen's Gambit Declined: Cambridge Springs Variation.} 9. O-O {[%emt 0:00:03]} O-O {[%emt 0:00:04]} 10. a3 {[%emt 0:00:21] [#]} Bd7 $146 {[%emt 0:01:26] The position is equal.} ({Predecessor:} 10... dxc4 11. Bxc4 c5 12. Rc1 cxd4 13. exd4 Rd8 14. Qe2 Bd7 15. Rfd1 Rac8 16. Ne5 Be8 {0-1 (27) Nagy,B (2358)-Volkmann,F (2420) Austria 2014}) 11. b4 {[%emt 0:00:07]} Qc7 {[%emt 0:00:03]} 12. Ne5 {[%emt 0:00:05]} Be8 {[%emt 0:00:02]} 13. Qc2 {[%emt 0:00:11]} a5 {[%emt 0:00:32]} 14. Rab1 {[%emt 0:00:31] White is much more active. The black rooks are badly placed.} (14. c5 $14) 14... axb4 $11 {[%emt 0:00:05]} 15. axb4 {[%emt 0:00:01]} h6 {[%emt 0:00:49]} 16. c5 {[%emt 0:00:10]} Nd7 {[%emt 0:00:20]} 17. f4 {[%emt 0:00:06]} (17. Nf3 $14) 17... Nxe5 $15 {[%emt 0:00:02]} 18. fxe5 {[%emt 0:00:09]} f6 {[%emt 0:00:02]} 19. exf6 {[%emt 0:00:45]} Rxf6 {[%emt 0:00:05]} 20. b5 {[%emt 0:00:21]} e5 {[%emt 0:00:23]} 21. bxc6 {[%emt 0:00:39]} Bxc6 {[%emt 0:00:33][%mdl 8192]} (21... bxc6 $15 22. Qb3 Bf7) 22. Qb3 $18 {[%emt 0:00:17]} Rd8 {[%emt 0:00:23]} 23. Rbe1 $2 {[%emt 0:03:22]} (23. e4 $1 $18 Kh8 24. exd5 (24. Nxd5 Qd7 $16) 24... exd4 25. Nb5 (25. dxc6 Rxf1+ 26. Rxf1 dxc3 $16) 25... Rxf1+ 26. Rxf1 Bxd5 27. Qxd5 (27. Nxc7 Bxb3 28. Rb1 Bg8 $17) 27... Rxd5 28. Nxc7 Rxc5 29. Ne6) 23... Kh8 $11 {[%emt 0:00:10]} 24. Bb1 {[%emt 0:00:47]} Rxf1+ {[%emt 0:01:09]} 25. Rxf1 {[%emt 0:00:10]} Bf6 {[%emt 0:00:03]} 26. Qc2 {[%emt 0:01:58][%csl Gb1][%cal Rc2h7]} e4 {[%emt 0:00:13]} 27. Rf5 {[%emt 0:03:12]} b6 {[%emt 0:01:19] And now ...bxc5 would win.} (27... Bg5 $5 {[%cal Rg5e3]} 28. Qf2 Qc8 $11) 28. Nxd5 {[%emt 0:02:40]} Rxd5 $17 {[%emt 0:00:53]} (28... Bxd5 29. Rxd5 $1 {[%mdl 512]} Re8 30. c6 $16) 29. Qxe4 {[%emt 0:00:06] [#]} Rxf5 {[%emt 0:01:03]} (29... Rxd4 $2 30. Qxd4 Qf7 31. cxb6 Bxd4 32. Rxf7 $18) 30. Qxf5 {[%emt 0:00:07][%csl Gb1][%cal Rf5h7]} Kg8 {[%emt 0:00:07]} 31. cxb6 {[%emt 0:01:45]} Qxb6 {[%emt 0:04:45]} 32. Qe6+ {[%emt 0:01:04] [#]} Kf8 $1 {[%emt 0:00:02]} ({Don't play} 32... Kh8 33. Ba2 (33. Be4 Qa5 $17) 33... Qd8 34. Qxc6 $16) 33. Bg6 {[%emt 0:02:38][%csl Gg6][%cal Re6f7]} Qc7 {[%emt 0:02:08] Prevents Qf7+.} 34. d5 {[%emt 0:00:29]} (34. g3 $17) 34... Bxd5 $4 {[%emt 0:02:35][%mdl 8192]} 35. Qe8# {[%emt 0:00:16] What a bad dream for Black.  Weighted Error Value: White=0.34/Black=0.48} ({Weaker is} 35. Qxd5 Bg5 $16) 1-0

[Event "Czech Open-Rapid 2022"]
[Site "Pardubice"]
[Date "2022.07.21"]
[Round "6.26"]
[White "Bertram, Karsten"]
[Black "Vesely, Emanuel"]
[Result "1-0"]
[ECO "A45"]
[WhiteElo "2062"]
[BlackElo "1808"]
[Annotator "NA RC"]
[PlyCount "57"]
[EventDate "2022.07.20"]
[EventType "swiss"]
[EventCountry "CZE"]
[SourceTitle "playchess.com"]
[Source "ChessBase"]
[SourceQuality "1"]
[TimeControl "1200+10"]

1. d4 Nf6 {[%emt 0:00:04]} 2. Nc3 {[%emt 0:00:07]} d5 {[%emt 0:00:11]} 3. Bf4 {[%emt 0:00:03]} Bf5 {[%emt 0:00:24]} 4. f3 {[%emt 0:00:29]} h6 {[%emt 0:00:13]} 5. g4 {[%emt 0:00:06]} Bh7 {[%emt 0:00:02]} 6. e3 {[%emt 0:00:08]} e6 {[%emt 0:00:01]} 7. Bd3 {[%emt 0:00:39]} Bxd3 {[%emt 0:00:16]} 8. Qxd3 {[%emt 0:00:01]} Bd6 {[%emt 0:00:07]} 9. Nge2 {[%emt 0:00:06]} c5 {[%emt 0:02:22]} 10. dxc5 {[%emt 0:02:39]} Bxf4 {[%emt 0:02:12]} 11. Nxf4 {[%emt 0:00:09]} Qa5 {[%emt 0:00:58]} 12. Qb5+ {[%emt 0:00:12]} Qxb5 {[%emt 0:00:05]} 13. Nxb5 {[%emt 0:00:01]} Na6 {[%emt 0:00:23]} 14. Nd3 {[%emt 0:00:25]} O-O {[%emt 0:01:08]} 15. a3 {[%emt 0:00:23]} Nd7 {[%emt 0:00:37]} 16. b4 {[%emt 0:00:14]} f5 {[%emt 0:00:28]} 17. Nf4 {[%emt 0:01:12]} Rf6 {[%emt 0:00:27]} 18. Ke2 {[%emt 0:00:48]} g5 {[%emt 0:00:06]} 19. Nd3 {[%emt 0:00:49]} e5 {[%emt 0:01:19]} 20. Nd6 {[%emt 0:01:20]} e4 {[%emt 0:00:31]} 21. fxe4 {[%emt 0:01:12]} fxe4 {[%emt 0:00:31]} 22. Nf2 {[%emt 0:04:25]} b6 {[%emt 0:00:20]} 23. Nf5 {[%emt 0:01:07]} bxc5 {[%emt 0:00:32]} 24. Ne7+ {[%emt 0:00:11]} Kg7 {[%emt 0:02:30]} 25. Nxd5 {[%emt 0:00:02]} Rd6 {[%emt 0:03:31]} 26. c4 {[%emt 0:00:12]} Re8 {[%emt 0:00:08]} 27. Rhd1 {[%emt 0:02:01]} Nb6 {[%emt 0:01:37]} 28. Nxb6 {[%emt 0:00:13]} axb6 {[%emt 0:00:25]} 29. Rxd6 {[%emt 0:00:03]} 1-0

[Event "Czech Open-Rapid 2022"]
[Site "Pardubice"]
[Date "2022.07.21"]
[Round "6.27"]
[White "Valenta, Vit Vaclav"]
[Black "Tolmacevs, Artjoms"]
[Result "0-1"]
[ECO "A00"]
[WhiteElo "1996"]
[BlackElo "2022"]
[Annotator "TA"]
[PlyCount "73"]
[EventDate "2022.07.20"]
[EventType "swiss"]
[EventCountry "CZE"]
[SourceTitle "playchess.com"]
[Source "ChessBase"]
[SourceQuality "1"]
[TimeControl "1200+10"]

{[%evp 9,73,-7,0,-9,0,-2,0,-26,-20,-20,-19,-29,1,0,0,0,21,0,0,0,22,19,52,-47,-50,-71,-48,-42,-26,-56,-37,-102,-106,-90,-91,-229,-234,-238,-220,-273,-275,-333,-335,-443,-431,-487,-440,-716,-660,-695,-711,-714,-700,-690,-666,-670,-658,-657,-587,-745,-683,-814,-804,-1765,-1702,-2034]} 1. b4 {[%emt 0:00:01]} e5 {[%emt 0:00:03]} 2. Bb2 {[%emt 0:00:01]} d6 {[%emt 0:00:02]} 3. d3 {[%emt 0:00:05]} Nf6 {[%emt 0:00:01]} 4. Nd2 {[%emt 0:00:02]} Be7 {[%emt 0:00:23]} 5. Ngf3 {[%emt 0:00:03]} O-O {[%emt 0:00:25]} 6. g3 {[%emt 0:00:02] A00: Irregular Openings.} a5 {[%emt 0:00:23] [#]} 7. b5 $146 {[%emt 0:00:02]} ({Predecessor:} 7. a3 axb4 8. axb4 Rxa1 9. Qxa1 Na6 10. c3 d5 11. Nxe5 d4 12. Bg2 dxc3 13. Bxc3 Bxb4 {½-½ (20) Karmanova,M (2030)-Senin,S (2194) Nizhnij Novgorod 2012}) 7... a4 {[%emt 0:00:02]} 8. a3 {[%emt 0:00:16] The position is equal.} Bd7 {[%emt 0:00:06]} 9. c4 {[%emt 0:00:02]} c6 {[%emt 0:00:02]} 10. bxc6 $1 {[%emt 0:00:13]} Bxc6 {[%emt 0:00:18]} 11. Bg2 {[%emt 0:00:02]} Nbd7 {[%emt 0:01:14]} 12. O-O {[%emt 0:00:39]} Nc5 {[%emt 0:01:41]} 13. Bc3 {[%emt 0:01:29]} Qd7 {[%emt 0:03:25]} 14. Bb4 {[%emt 0:02:59]} Qc7 {[%emt 0:02:30]} 15. Qb1 {[%emt 0:02:09]} d5 {[%emt 0:02:03]} 16. Rc1 {[%emt 0:02:16]} (16. d4 $14 exd4 17. Nxd4) 16... d4 $15 {[%emt 0:00:29]} 17. Nh4 {[%emt 0:01:13]} Bxg2 {[%emt 0:00:07] Black is more active.} 18. Nxg2 {[%emt 0:00:05]} Nfd7 {[%emt 0:00:41][%cal Bf6d7,Bd7e5,Be5d3][%mdl 32]} 19. e4 {[%emt 0:02:11]} f5 {[%emt 0:02:08]} 20. Re1 {[%emt 0:02:17]} ({Better is} 20. exf5 $15 Rxf5 21. Re1) 20... f4 $17 {[%emt 0:00:24]} 21. gxf4 {[%emt 0:00:31]} exf4 {[%emt 0:00:01]} 22. f3 {[%emt 0:00:03] Now White is beyond hope.} (22. Nf3 $17) 22... Ne5 $19 {[%emt 0:00:12]} 23. Bxc5 {[%emt 0:00:35]} Bxc5 {[%emt 0:00:09]} ({Weaker is} 23... Qxc5 24. Qxb7 Nxd3 25. Reb1 $17) 24. Qc2 {[%emt 0:00:53]} Qa5 {[%emt 0:00:53]} 25. Kf1 {[%emt 0:02:50]} Qc3 {[%emt 0:01:00]} 26. Ra2 {[%emt 0:01:04]} Nxd3 {[%emt 0:00:33] Black is clearly winning.} 27. Rb1 {[%emt 0:00:11]} b6 {[%emt 0:01:41] aiming for ...Ne5.} 28. Ke2 {[%emt 0:00:48]} (28. Rd1 $142 Ne5 29. Qxc3 dxc3 30. Nb1) 28... Ne5 {[%emt 0:00:30] [#] Threatens to win with ...d3+.} 29. Qxc3 {[%emt 0:00:27]} dxc3 {[%emt 0:00:01]} 30. Nf1 {[%emt 0:00:04]} Nxc4 {[%emt 0:00:01]} 31. Rc1 {[%emt 0:00:17]} Nxa3 {[%emt 0:01:04]} 32. Rxc3 {[%emt 0:00:02]} Nb5 {[%emt 0:00:01]} 33. Rc4 {[%emt 0:00:30]} a3 34. Ne1 Nd4+ {[%emt 0:01:10]} 35. Kd1 {[%emt 0:00:40]} Rfd8 {[%emt 0:00:30] Strongly threatening ...Nxf3+.} 36. Kc1 {[%emt 0:00:09] [#]} b5 $1 {[%emt 0:00:18]} 37. Kd1 {Weighted Error Value: White=0.60/Black=0.08 (flawless)} (37. Rc3 b4) 0-1